bitfinex/quotes_BTCUSD_20251219
["timestamp","ask_amount","ask_price","bid_price","bid_amount"]
[1766108297840,0.15633218,85389.0,85375.0,0.33411]
[1766108298044,0.15633218,85389.0,85348.0,0.04692]
[1766108298045,0.05001839,85395.0,85378.0,1e-08]
[1766108298263,0.05001839,85391.0,85371.0,0.00588]
[1766108298505,1.03003,85393.0,85371.0,0.00588]
[1766108298680,0.52064839,85392.0,85371.0,0.00588]
[1766108298917,0.5594,85391.0,85371.0,0.00588]
[1766108299335,0.47063,85392.0,85371.0,0.00588]
[1766108299841,0.5594,85389.0,85371.0,0.00588]
[1766108300085,0.5594,85389.0,85372.0,0.16681]
[1766108300601,0.35987508,85389.0,85372.0,0.16681]
[1766108301507,0.47063,85389.0,85372.0,0.16681]
[1766108302487,0.5594,85388.0,85372.0,0.16681]
[1766108303128,1.029587,85388.0,85372.0,0.16681]
[1766108306298,0.5594,85387.0,85372.0,0.16681]
[1766108306656,1.03003,85387.0,85372.0,0.16681]
[1766108307954,0.00011054,85393.0,85374.0,0.16681]
[1766108308167,0.5594,85404.0,85385.0,0.16681]
[1766108308410,0.0003684,85404.0,85390.0,0.26337]
[1766108308620,0.0003684,85404.0,85380.0,0.70791304]
[1766108308621,1.03003,85402.0,85386.0,0.00588]
[1766108308834,1.03003,85402.0,85387.0,0.17269]
[1766108309054,0.0003684,85404.0,85389.0,0.26399]
[1766108309275,0.0004,85421.0,85402.0,0.000989]
[1766108309492,0.03519835,85424.0,85407.0,0.70791304]
[1766108309710,0.00011045,85424.0,85413.0,0.16564]
[1766108310302,0.00025938,85420.0,85413.0,0.16564]
[1766108310611,3.8e-07,85420.0,85413.0,0.16564]
[1766108311621,3.8e-07,85420.0,85414.0,0.00588]
[1766108311767,3.8e-07,85420.0,85418.0,0.16564]
[1766108311970,3.8e-07,85420.0,85418.0,0.17968856]
[1766108312393,3.8e-07,85420.0,85418.0,0.16564]
[1766108313555,8.3e-07,85424.0,85416.0,0.06563218]
[1766108313765,2.32e-06,85433.0,85427.0,0.14716]
[1766108313896,2.32e-06,85443.0,85429.0,0.47626]
[1766108314308,0.0004,85450.0,85429.0,0.47626]
[1766108314505,4.3e-07,85450.0,85429.0,0.47626]
[1766108316067,4.3e-07,85450.0,85434.0,0.12616]
[1766108316270,4.3e-07,85450.0,85430.0,0.49026]
[1766108316423,1.03003043,85450.0,85430.0,0.61642]
[1766108317251,4.3e-07,85450.0,85430.0,0.61642]
[1766108317455,1.03003043,85450.0,85430.0,0.61642]
[1766108317771,1.03003043,85450.0,85427.0,0.00588]
[1766108317772,1.03003043,85450.0,85431.0,0.12616]
[1766108317981,1.03003043,85450.0,85431.0,0.61782]
[1766108318502,4.3e-07,85450.0,85431.0,0.61782]
[1766108318630,1.03003043,85450.0,85431.0,0.61782]
[1766108319239,4.3e-07,85450.0,85431.0,0.61782]
[1766108319734,4.3e-07,85450.0,85431.0,0.12616]
[1766108320250,1.03003043,85450.0,85432.0,0.49299]
[1766108320437,1.03003043,85450.0,85433.0,0.12616]
[1766108321003,4.3e-07,85450.0,85433.0,0.12616]
[1766108321203,0.06563218,85449.0,85433.0,0.12616]
[1766108321380,0.06563218,85449.0,85427.0,0.00588]
[1766108321593,1.03003,85448.0,85428.0,0.62041]
[1766108322640,4.3e-07,85450.0,85430.0,0.12616]
[1766108322807,4.3e-07,85450.0,85435.0,0.62256]
[1766108323009,0.0004,85466.0,85441.0,0.496]
[1766108323218,0.0004,85472.0,85453.0,0.496]
[1766108323454,7.1e-05,85469.0,85458.0,0.58538]
[1766108323653,7.1e-05,85469.0,85454.0,0.01992264]
[1766108323654,1e-06,85469.0,85459.0,0.01404182]
[1766108323861,1e-06,85469.0,85461.0,0.58589]
[1766108324064,1e-06,85469.0,85462.0,0.01404132]
[1766108324282,0.001099,85462.0,85453.0,0.00588]
[1766108324484,0.59312,85465.0,85453.0,0.00588]
[1766108324699,0.48816,85462.0,85444.0,0.08931]
[1766108324896,1e-06,85469.0,85444.0,0.08931]
[1766108324897,0.01170028,85468.0,85445.0,0.00588]
[1766108325134,0.06563318,85469.0,85442.0,0.0907]
[1766108325135,0.0008107,85445.0,85442.0,0.0907]
[1766108325329,1.08128,85457.0,85443.0,0.00588]
[1766108325485,0.48816,85457.0,85443.0,0.00588]
[1766108325692,0.06563318,85469.0,85443.0,0.00588]
[1766108325873,1.08128,85468.0,85445.0,0.08931]
[1766108326074,1.08128,85468.0,85445.0,0.5882]
[1766108326545,0.06563318,85469.0,85445.0,0.5882]
[1766108326775,1.08128,85468.0,85446.0,0.08931]
[1766108327000,0.06563318,85469.0,85446.0,0.58804]
[1766108327205,1.08128,85468.0,85446.0,0.58804]
[1766108327430,0.06563318,85469.0,85446.0,0.58804]
[1766108327870,1.14691318,85469.0,85448.0,0.49857]
[1766108328088,1.14691318,85469.0,85449.0,0.59376]
[1766108328699,1.081281,85469.0,85451.0,0.4984]
[1766108328904,1.081281,85469.0,85452.0,0.08931]
[1766108330468,1.081281,85469.0,85453.0,0.58754]
[1766108330672,1.081281,85469.0,85454.0,0.00588]
[1766108331148,0.00113486,85455.0,85454.0,0.00588]
[1766108332186,4.86e-06,85455.0,85454.0,0.00588]
[1766108335262,1.08128486,85455.0,85452.0,0.00588]
[1766108335471,0.001099,85452.0,85450.0,0.00588]
[1766108335671,0.48816,85455.0,85450.0,0.00588]
[1766108337803,0.48816,85455.0,85450.0,1e-06]
[1766108337971,1.08128,85455.0,85450.0,1e-06]
[1766108338173,1.08128,85455.0,85441.0,0.09081043]
[1766108338174,0.48816,85455.0,85441.0,0.00011043]
[1766108338373,1.08128,85453.0,85441.0,0.00011043]
[1766108338622,0.24570443,85469.0,85432.0,0.00588]
[1766108338623,1.08128,85450.0,85432.0,0.00588]
[1766108338960,1.08128,85442.0,85432.0,0.00588]
[1766108339118,0.01087593,85441.0,85432.0,0.00588]
[1766108339324,1.09215593,85441.0,85432.0,0.00588]
[1766108339503,0.01087593,85440.0,85432.0,0.00588]
[1766108340361,0.59312,85446.0,85432.0,0.00588]
[1766108340806,1.08128,85446.0,85432.0,0.00588]
[1766108341074,1.08128,85445.0,85432.0,0.00588]
[1766108343088,0.46733,85448.0,85432.0,0.00588]
[1766108343354,0.54834,85439.0,85432.0,0.00588]
[1766108343766,1.016769,85432.0,85426.0,0.00588]
[1766108344135,1.01567,85431.0,85423.0,0.00588]
[1766108345866,0.46733,85431.0,85423.0,0.00588]
[1766108347556,0.54834,85435.0,85423.0,0.00588]
[1766108349134,0.01836647,85449.0,85428.0,0.0907]
[1766108349343,0.46733,85445.0,85429.0,0.00588]
[1766108349545,1.01567,85443.0,85429.0,0.00588]
[1766108349681,0.46733,85443.0,85429.0,0.00588]
[1766108350112,0.46733,85443.0,85429.0,0.61195]
[1766108350879,0.54834,85448.0,85430.0,0.60602]
[1766108351124,0.54834,85448.0,85431.0,0.60602]
[1766108351705,0.47332037,85450.0,85434.0,0.60572]
[1766108351907,0.55422,85449.0,85434.0,0.11071]
[1766108352204,1.01567,85447.0,85429.0,0.00588]
[1766108352403,0.01678267,85446.0,85429.0,0.00588]
[1766108352743,0.01090267,85445.0,85429.0,0.61186]
[1766108352943,0.01090267,85444.0,85429.0,0.61186]
[1766108355529,0.01090267,85444.0,85431.0,0.11071]
[1766108355973,0.01090267,85444.0,85432.0,0.11071]
[1766108356418,2.67e-06,85444.0,85432.0,0.11071]
[1766108356635,0.01836572,85447.0,85438.0,0.09981]
[1766108356814,0.00599037,85450.0,85439.0,0.5754]
[1766108357023,0.00599037,85450.0,85437.0,0.00588]
[1766108357024,3.7e-07,85450.0,85446.0,0.49396]
[1766108357274,3.7e-07,85450.0,85449.0,0.57529]
[1766108365592,3.7e-07,85450.0,85449.0,0.574191]
[1766108368718,3.7e-07,85450.0,85449.0,0.080231]
[1766108368927,3.7e-07,85450.0,85447.0,0.00588]
[1766108369331,3.7e-07,85450.0,85449.0,0.08023]
[1766108369585,0.00026407,85463.0,85449.0,0.49115]
[1766108369789,0.00026407,85463.0,85447.0,0.00588]
[1766108369790,0.07476586,85481.0,85463.0,0.000264]
[1766108370023,0.07487627,85481.0,85472.0,0.49036]
[1766108370241,0.60133,85494.0,85474.0,0.42048]
[1766108370242,0.60721,85494.0,85474.0,0.42048]
[1766108370482,0.48647,85507.0,85485.0,0.42048]
[1766108370687,0.48658033,85507.0,85491.0,0.42383]
[1766108370902,0.00011033,85507.0,85497.0,0.70637874]
[1766108371119,0.00011033,85507.0,85498.0,0.00588]
[1766108371355,0.00011033,85507.0,85499.0,0.42383]
[1766108371563,0.00011033,85507.0,85500.0,0.01403508]
[1766108371725,3.3e-07,85507.0,85499.0,0.42383]
[1766108372476,3.3e-07,85507.0,85498.0,0.00588]
[1766108372477,3.3e-07,85507.0,85505.0,0.42716]
[1766108372653,3.3e-07,85507.0,85506.0,0.43271]
[1766108374033,3.3e-07,85507.0,85506.0,0.4324174]
[1766108376593,3.3e-07,85507.0,85506.0,0.0055874]
[1766108377042,0.00142579,85507.0,85506.0,0.0055874]
[1766108378335,0.00142579,85507.0,85498.0,0.0907]
[1766108378543,3.3e-07,85507.0,85499.0,0.00588]
[1766108380544,3.3e-07,85507.0,85500.0,0.49006218]
[1766108391154,0.57092,85531.0,85500.0,0.42443]
[1766108391328,0.01169112,85535.0,85500.0,0.42443]
[1766108391329,0.06563218,85526.0,85500.0,0.42443]
[1766108391527,0.00123116,85501.0,85500.0,1.12420716]
[1766108391731,0.00123116,85501.0,85500.0,0.41859]
[1766108392076,0.57092,85522.0,85500.0,0.41859]
[1766108392192,0.57083216,85522.0,85500.0,0.41859]
[1766108392396,0.46081,85521.0,85500.0,0.70561716]
[1766108392598,0.46081,85521.0,85501.0,0.41794]
[1766108394272,1.03173,85520.0,85501.0,0.41794]
[1766108395396,0.06574248,85526.0,85501.0,0.41794]
[1766108395601,0.57092,85522.0,85501.0,0.41794]
[1766108395805,1.03173,85520.0,85501.0,0.41794]
[1766108396013,0.06574248,85526.0,85501.0,0.41794]
[1766108396178,1.03173,85518.0,85501.0,0.41794]
[1766108396377,0.01087929,85517.0,85501.0,0.41794]
[1766108396581,0.06574248,85526.0,85500.0,0.70561716]
[1766108396782,0.46081,85523.0,85500.0,0.70561716]
[1766108397006,1.03173,85519.0,85501.0,0.42269]
[1766108397287,0.01088663,85518.0,85501.0,0.42269]
[1766108397910,1.04261663,85518.0,85501.0,0.42269]
[1766108398105,0.01088663,85517.0,85501.0,0.42269]
[1766108398475,0.00025899,85509.0,85501.0,0.42269]
[1766108400144,0.01088663,85508.0,85501.0,0.42269]
[1766108400365,0.01088663,85507.0,85501.0,0.42269]
[1766108400704,0.01088663,85506.0,85501.0,0.42269]
[1766108400913,0.00025899,85509.0,85499.0,0.71149716]
[1766108400914,0.01093248,85505.0,85499.0,0.00588]
[1766108401089,0.01093248,85504.0,85499.0,0.00588]
[1766108401249,0.00025899,85509.0,85500.0,0.41969]
[1766108401453,0.01093568,85508.0,85500.0,0.41969]
[1766108401783,0.00025899,85509.0,85500.0,0.41969]
[1766108412485,0.59501,85507.0,85482.0,0.40133]
[1766108412766,0.54834,85497.0,85479.0,0.03515463]
[1766108412942,0.001099,85482.0,85479.0,0.03515463]
[1766108413190,0.54834,85488.0,85480.0,0.00588]
[1766108413391,0.49252,85493.0,85480.0,0.00588]
[1766108413392,1.04086,85493.0,85480.0,0.00588]
[1766108413559,0.70561716,85500.0,85480.0,0.00588]
[1766108413821,1.04086,85492.0,85480.0,0.00588]
[1766108413991,1.04086,85492.0,85480.0,0.00624797]
[1766108413992,0.01092274,85491.0,85480.0,0.00624797]
[1766108414586,1.04086,85491.0,85480.0,0.00624797]
[1766108417139,0.01835464,85501.0,85480.0,0.00624797]
[1766108417349,0.71652208,85500.0,85480.0,0.00514897]
[1766108417561,0.71652208,85500.0,85477.0,0.04684]
[1766108417562,0.50930492,85499.0,85478.0,0.00588]
[1766108417770,0.49252,85497.0,85478.0,0.00588]
[1766108417976,0.49252,85495.0,85478.0,0.00588]
[1766108419431,0.54834,85494.0,85464.0,0.0907]
[1766108419590,0.49252,85489.0,85470.0,0.58731]
[1766108419773,1.04086,85491.0,85471.0,0.00588]
[1766108419971,0.00588,85492.0,85471.0,0.00588]
[1766108420392,1.04086,85491.0,85471.0,0.00588]
[1766108420834,0.00588,85492.0,85471.0,0.00588]
[1766108421000,1.04086,85491.0,85471.0,0.00588]
[1766108421492,0.00588,85492.0,85471.0,0.00588]
[1766108422196,1.04086,85491.0,85471.0,0.00588]
[1766108422749,0.00588,85492.0,85471.0,0.00588]
[1766108422920,0.00588,85492.0,85473.0,0.01103]
[1766108423123,1.04086,85491.0,85474.0,0.58731]
[1766108423371,0.00588,85492.0,85474.0,0.58731]
[1766108423903,0.00588,85492.0,85471.0,0.00588]
[1766108424213,0.00588,85492.0,85462.0,0.06563218]
[1766108424214,0.70561716,85490.0,85450.0,0.57628]
[1766108424420,0.06563218,85459.0,85449.0,0.05]
[1766108424626,0.70561716,85460.0,85434.0,0.04688]
[1766108424867,0.00588,85464.0,85435.0,0.00588]
[1766108425085,0.00588,85464.0,85436.0,0.00588]
[1766108425316,0.00588,85464.0,85436.0,0.73977]
[1766108425803,1.04086,85463.0,85436.0,0.73988033]
[1766108426067,0.49252,85463.0,85436.0,0.73988033]
[1766108426280,0.70561716,85460.0,85436.0,0.00599033]
[1766108426785,0.06563218,85452.0,85436.0,0.00599033]
[1766108426998,0.06563218,85452.0,85436.0,3.3e-07]
[1766108426999,1.04086,85450.0,85436.0,3.3e-07]
[1766108427226,0.00588,85451.0,85436.0,3.3e-07]
[1766108428522,0.54834,85449.0,85436.0,3.3e-07]
[1766108428734,0.00588,85451.0,85436.0,3.3e-07]
[1766108429148,0.49252,85450.0,85436.0,3.3e-07]
[1766108429326,1.04086,85447.0,85436.0,3.3e-07]
[1766108429584,1.04086,85445.0,85436.0,3.3e-07]
[1766108430947,0.01836546,85448.0,85436.0,3.3e-07]
[1766108431150,0.00588,85447.0,85436.0,3.3e-07]
[1766108432239,0.49252,85446.0,85436.0,3.3e-07]
[1766108434782,0.00588,85447.0,85436.0,3.3e-07]
[1766108435377,0.54834,85446.0,85436.0,3.3e-07]
[1766108436062,0.4984,85447.0,85436.0,3.3e-07]
[1766108436861,0.00588,85447.0,85436.0,3.3e-07]
[1766108437291,0.00588,85447.0,85438.0,0.06702]
[1766108437553,0.01836546,85448.0,85436.0,3.3e-07]
[1766108437831,0.01836546,85448.0,85437.0,0.63742]
[1766108438024,0.01836546,85448.0,85437.0,0.06114]
[1766108438358,0.01836546,85448.0,85438.0,0.57628]
[1766108439189,0.01836546,85448.0,85437.0,0.06114]
[1766108439443,0.0907,85459.0,85437.0,0.06114]
[1766108439444,0.54834,85464.0,85439.0,0.57628]
[1766108439657,0.00588,85463.0,85441.0,0.57628]
[1766108439890,0.00588,85463.0,85443.0,0.57628]
[1766108440101,0.00588,85463.0,85446.0,0.63742]
[1766108440334,1.04674,85463.0,85447.0,0.00588]
[1766108440650,0.00588,85463.0,85447.0,0.00588]
[1766108440840,1.04086,85462.0,85447.0,0.00588]
[1766108441694,0.00588,85461.0,85447.0,0.00588]
[1766108442078,0.49252,85460.0,85447.0,0.00588]
[1766108442831,0.01836387,85459.0,85447.0,0.00588]
[1766108443608,0.01836387,85459.0,85451.0,0.06114]
[1766108443928,0.00588,85462.0,85451.0,0.62331]
[1766108444105,0.0183631,85465.0,85451.0,0.06114]
[1766108444307,1.00788,85464.0,85447.0,0.00588]
[1766108444508,0.0183631,85465.0,85447.0,0.00588]
[1766108444717,1.00788,85464.0,85447.0,0.00588]
[1766108445120,0.55616,85464.0,85447.0,0.00588]
[1766108445319,1.00788,85464.0,85447.0,0.00588]
[1766108445523,0.00588,85463.0,85447.0,0.00588]
[1766108446692,0.00588,85463.0,85449.0,0.06114]
[1766108446902,0.00588,85463.0,85452.0,0.56217]
[1766108447301,0.00588,85463.0,85451.0,0.06114]
[1766108447506,0.4576,85463.0,85451.0,0.06114]
[1766108447708,0.70660089,85461.0,85447.0,0.00588]
[1766108447921,0.70660089,85461.0,85442.0,0.00588]
[1766108448118,1.00788,85462.0,85442.0,0.00588]
[1766108448371,0.45172,85457.0,85442.0,0.00588]
[1766108448572,0.45172,85453.0,85442.0,0.00588]
[1766108448750,1.00788,85452.0,85442.0,0.00588]
[1766108451144,0.00588,85456.0,85442.0,0.00588]
[1766108451347,0.55616,85440.0,85426.0,0.1478]
[1766108451676,0.45172,85439.0,85430.0,0.70660089]
[1766108451878,0.45172,85439.0,85433.0,0.00588]
[1766108452492,0.00588,85448.0,85431.0,0.00588]
[1766108452696,0.01089207,85447.0,85431.0,0.00588]
[1766108453299,0.55616,85446.0,85431.0,0.00588]
[1766108453505,0.45172,85443.0,85431.0,1e-06]
[1766108453713,0.45172,85439.0,85430.0,0.00011041]
[1766108453862,1.00788,85437.0,85430.0,0.00011041]
[1766108454066,0.01089207,85436.0,85430.0,0.00011041]
[1766108454872,0.46261207,85436.0,85430.0,0.00011041]
[1766108455082,0.01089207,85435.0,85430.0,0.00011041]
[1766108455483,0.01089207,85435.0,85426.0,2.22e-06]
[1766108455683,1.00788,85434.0,85422.0,0.05276]
[1766108455885,0.00588,85436.0,85422.0,0.05276]
[1766108455886,0.01089207,85433.0,85422.0,0.05276]
[1766108456096,0.01089207,85432.0,85423.0,0.10574]
[1766108456297,0.01089207,85431.0,85423.0,0.00011045]
[1766108456496,0.01677207,85430.0,85423.0,0.00011045]
[1766108456661,0.01089207,85429.0,85423.0,0.00011045]
[1766108457746,0.01089207,85429.0,85417.0,0.11143045]
[1766108457867,0.0110023,85429.0,85417.0,0.11143045]
[1766108458065,0.0110023,85429.0,85417.0,0.00569045]
[1766108458330,0.45172,85425.0,85414.0,0.0002]
[1766108458513,0.0110023,85429.0,85414.0,0.0002]
[1766108458514,1.00788,85421.0,85414.0,0.0002]
[1766108458903,1.006781,85421.0,85414.0,0.0002]
[1766108460734,0.00011023,85429.0,85414.0,0.0002]
[1766108460735,0.55627023,85429.0,85414.0,0.0002]
[1766108460919,0.01676899,85428.0,85414.0,0.0002]
[1766108461123,1.00788,85426.0,85414.0,0.0002]
[1766108461322,0.01088652,85425.0,85414.0,0.0002]
[1766108461527,1.00788,85426.0,85414.0,0.0002]
[1766108461723,0.55616,85426.0,85414.0,0.0002]
[1766108462012,1.01876661,85425.0,85414.0,0.0002]
[1766108462187,0.45172,85425.0,85416.0,0.70660089]
[1766108462828,0.45172,85425.0,85415.0,0.70660089]
[1766108464022,0.45172,85425.0,85414.0,0.0002]
[1766108464196,0.45931,85423.0,85412.0,0.00588]
[1766108465639,0.53322,85427.0,85412.0,0.00588]
[1766108466240,0.52734,85427.0,85412.0,0.00588]
[1766108466611,0.00588,85426.0,85412.0,0.00588]
[1766108467901,0.52734,85427.0,85412.0,0.00588]
[1766108468108,0.00588,85426.0,85412.0,0.00588]
[1766108469418,0.0242483,85426.0,85412.0,0.00588]
[1766108470728,0.00588,85425.0,85414.0,0.11253]
[1766108470870,0.00588,85425.0,85414.0,0.69025]
[1766108472428,0.00588,85425.0,85414.0,0.11253]
[1766108473276,0.00588,85426.0,85415.0,0.52513]
[1766108474940,0.49034,85443.0,85416.0,0.70660089]
[1766108475154,0.01676268,85442.0,85428.0,1.33838089]
[1766108475369,0.01088268,85441.0,85422.0,0.53101]
[1766108475586,0.55016,85440.0,85422.0,0.53101]
[1766108475790,0.00588,85442.0,85422.0,0.53101]
[1766108475791,1.05138268,85439.0,85422.0,0.53101]
[1766108476002,0.49034,85438.0,85422.0,0.53101]
[1766108476216,0.00588,85437.0,85422.0,0.53101]
[1766108476845,0.01836756,85436.0,85422.0,0.53101]
[1766108478596,0.01836756,85436.0,85423.0,0.10575]
[1766108478804,0.01836756,85436.0,85424.0,0.52513]
[1766108479014,0.01836756,85436.0,85422.0,0.00588]
[1766108479221,1.0405,85434.0,85422.0,0.00588]
[1766108479428,0.01836756,85436.0,85425.0,0.52513]
[1766108479820,0.01836756,85436.0,85424.0,0.10575]
[1766108481766,0.01836756,85436.0,85424.0,0.63088]
[1766108482390,0.01836756,85436.0,85424.0,0.10575]
[1766108482812,0.01836756,85436.0,85424.0,0.63088]
[1766108483396,0.01091464,85435.0,85424.0,0.63088]
[1766108483788,0.01091464,85435.0,85425.0,0.10575]
[1766108484195,0.00588,85435.0,85425.0,0.10575]
[1766108484520,0.01091767,85434.0,85425.0,0.10575]
[1766108484679,0.00588,85435.0,85425.0,0.10575]
[1766108484893,0.01091779,85434.0,85425.0,0.10575]
[1766108485108,0.01091779,85434.0,85422.0,0.00588]
[1766108485334,1.05141779,85434.0,85422.0,0.00588]
[1766108485500,0.01091779,85433.0,85422.0,0.00588]
[1766108485724,0.01091779,85433.0,85424.0,0.63088]
[1766108485926,0.01836756,85436.0,85424.0,0.63088]
[1766108486198,0.04692,85451.0,85434.0,0.52513]
[1766108486363,0.00588,85450.0,85442.0,0.52513]
[1766108486556,0.00588,85452.0,85442.0,0.52513]
[1766108487093,0.55597218,85465.0,85452.0,0.001099]
[1766108487236,0.00588,85464.0,85452.0,0.001099]
[1766108487449,0.00011045,85464.0,85453.0,0.52513]
[1766108487645,0.06563218,85462.0,85450.0,0.00588]
[1766108487860,0.06563218,85462.0,85446.0,0.00588]
[1766108488666,0.70660089,85460.0,85441.0,0.00588]
[1766108489041,1.0405,85459.0,85441.0,0.00588]
[1766108489245,0.00588,85458.0,85441.0,0.00588]
[1766108489446,1.0405,85457.0,85441.0,0.00588]
[1766108489705,0.00588,85458.0,85441.0,0.00588]
[1766108490148,0.49034,85456.0,85441.0,0.00588]
[1766108490561,1.0405,85456.0,85441.0,0.00588]
[1766108492057,0.49034,85455.0,85441.0,0.00588]
[1766108494379,0.00588,85458.0,85441.0,0.00588]
[1766108495578,1.0405,85457.0,85441.0,0.00588]
[1766108495779,0.00588,85458.0,85441.0,0.00588]
[1766108496184,1.0405,85457.0,85441.0,0.00588]
[1766108496589,0.49034,85457.0,85441.0,0.00588]
[1766108496847,0.49034,85450.0,85426.0,0.0907]
[1766108496991,0.49034,85448.0,85430.0,0.70660089]
[1766108497382,0.49034,85448.0,85428.0,0.52513]
[1766108498201,0.49034,85448.0,85428.0,0.59554]
[1766108498624,0.00588,85449.0,85431.0,0.07041]
[1766108498849,0.55016,85446.0,85425.0,0.1478]
[1766108499067,0.49034,85435.0,85425.0,0.1478]
[1766108499278,0.49034,85435.0,85422.0,0.00588]
[1766108499279,0.49034,85435.0,85423.0,0.52513]
[1766108499609,0.00588,85436.0,85435.0,0.001099]
[1766108500014,0.00588,85436.0,85426.0,0.52513]
[1766108500674,0.49034,85442.0,85426.0,0.52513]
[1766108500844,0.49034,85442.0,85422.0,0.00588]
[1766108500845,0.00588,85441.0,85436.0,0.001099]
[1766108501057,0.00588,85440.0,85436.0,0.001099]
[1766108501419,0.00588,85440.0,85431.0,0.52513]
[1766108502355,0.00588,85440.0,85427.0,0.00588]
[1766108503368,0.4582,85440.0,85427.0,0.00588]
[1766108504826,0.00588,85440.0,85428.0,0.58204]
[1766108505010,0.00588,85440.0,85429.0,0.07041]
[1766108505212,0.00588,85440.0,85432.0,0.51163]
[1766108507827,0.96837,85439.0,85427.0,0.00588]
[1766108508484,0.00588,85440.0,85421.0,0.04688]
[1766108508710,0.96837,85439.0,85423.0,0.00588]
[1766108509103,0.00588,85440.0,85423.0,0.00588]
[1766108509521,0.96837,85439.0,85423.0,0.00588]
[1766108509729,0.00588,85440.0,85418.0,0.07629]
[1766108509935,0.00588,85440.0,85419.0,0.00588]
[1766108510311,0.96837,85439.0,85419.0,0.00588]
[1766108510519,0.51605,85439.0,85419.0,0.51751]
[1766108510700,0.00588,85440.0,85419.0,0.5938]
[1766108510899,0.96837,85439.0,85419.0,0.5938]
[1766108511100,0.00588,85440.0,85419.0,0.5938]
[1766108511305,0.96837,85439.0,85419.0,0.5938]
[1766108511510,0.00588,85440.0,85419.0,0.5938]
[1766108511921,0.96837,85439.0,85419.0,0.5938]
[1766108512320,0.00588,85440.0,85419.0,0.5938]
[1766108512525,0.96837,85439.0,85419.0,0.5938]
[1766108512759,0.00588,85440.0,85419.0,0.51751]
[1766108512760,0.9584947,85440.0,85419.0,0.51751]
[1766108512926,0.2340874,85439.0,85421.0,0.51163]
[1766108513124,0.96837,85438.0,85419.0,0.00588]
[1766108513368,0.01170439,85438.0,85419.0,0.00588]
[1766108513569,0.45232,85435.0,85419.0,0.00588]
[1766108513770,0.45232,85431.0,85419.0,0.00588]
[1766108513967,0.96837,85428.0,85419.0,0.00588]
[1766108514789,0.00588,85434.0,85419.0,0.00588]
[1766108515427,0.00588,85434.0,85418.0,0.00011023]
[1766108515629,0.96837,85433.0,85418.0,0.00011023]
[1766108515833,0.00588,85434.0,85418.0,2.3e-07]
[1766108516035,0.96837,85433.0,85418.0,2.3e-07]
[1766108516238,0.00588,85434.0,85418.0,2.3e-07]
[1766108516451,0.96837,85433.0,85418.0,2.3e-07]
[1766108516654,0.00588,85434.0,85418.0,2.3e-07]
[1766108516854,0.96837,85433.0,85418.0,2.3e-07]
[1766108517254,0.00588,85434.0,85418.0,2.3e-07]
[1766108517736,0.96837,85433.0,85418.0,2.3e-07]
[1766108518091,0.00588,85434.0,85418.0,2.3e-07]
[1766108518290,0.45232,85433.0,85418.0,2.3e-07]
[1766108518494,0.51605,85432.0,85418.0,2.3e-07]
[1766108518693,0.96837,85429.0,85418.0,2.3e-07]
[1766108518899,0.4582,85428.0,85418.0,2.3e-07]
[1766108520975,0.00588,85428.0,85419.0,0.51163]
[1766108521180,1e-06,85428.0,85418.0,2.3e-07]
[1766108522170,0.96837,85427.0,85418.0,2.3e-07]
[1766108522599,0.45232,85427.0,85418.0,2.3e-07]
[1766108522963,0.45232,85427.0,85415.0,0.63177023]
[1766108523169,0.45243039,85427.0,85415.0,0.63177023]
[1766108524041,0.00011039,85427.0,85416.0,0.0775]
[1766108525001,0.48282,85435.0,85411.0,0.07151218]
[1766108525002,0.00588,85430.0,85418.0,0.079]
[1766108525208,0.0907,85447.0,85425.0,0.55447]
[1766108525432,0.0907,85447.0,85424.0,0.079]
[1766108525433,0.01090713,85446.0,85434.0,0.55447]
[1766108525634,0.01090713,85446.0,85438.0,0.55447]
[1766108525635,0.00588,85446.0,85438.0,0.55447]
[1766108526371,0.00588,85446.0,85437.0,0.07312]
[1766108527075,0.06563218,85462.0,85443.0,0.07312]
[1766108527277,0.00588,85461.0,85441.0,0.55447]
[1766108527932,0.48282,85468.0,85442.0,0.01404461]
[1766108528136,0.0907,85470.0,85450.0,0.70682634]
[1766108528349,0.03517825,85476.0,85459.0,0.55447]
[1766108528552,1.0099,85483.0,85461.0,0.55429653]
[1766108528761,0.00588,85482.0,85461.0,0.55429653]
[1766108529172,0.001099,85461.0,85459.0,0.00588]
[1766108529404,0.48282,85473.0,85459.0,0.00588]
[1766108529405,0.48282,85465.0,85459.0,0.00588]
[1766108529612,0.50118092,85465.0,85455.0,0.00588]
[1766108531732,0.26741025,85465.0,85455.0,0.00588]
[1766108531934,0.01836092,85465.0,85455.0,0.00588]
[1766108535726,0.01836092,85465.0,85456.0,0.0907]
[1766108538358,0.01836092,85465.0,85455.0,0.09658]
[1766108540207,0.01836092,85465.0,85455.0,0.00588]
[1766108540436,0.01836092,85465.0,85456.0,0.78537]
[1766108540798,0.01836092,85465.0,85455.0,0.00588]
[1766108541953,0.01752092,85465.0,85455.0,0.00588]
[1766108546039,0.01752092,85465.0,85456.0,0.0907]
[1766108546248,0.01752092,85465.0,85457.0,0.5516]
[1766108546446,0.01752092,85465.0,85456.0,0.32447]
[1766108548301,0.01752092,85465.0,85456.0,0.78537]
[1766108550275,0.01752092,85465.0,85455.0,0.00588]
[1766108550491,9.2e-07,85465.0,85460.0,0.76785]
[1766108550712,0.00588,85470.0,85460.0,0.76785]
[1766108551116,0.47069,85474.0,85460.0,0.76785]
[1766108551315,0.00588,85473.0,85460.0,0.76785]
[1766108552965,1.02445,85473.0,85460.0,0.76785]
[1766108553174,1.01857,85472.0,85460.0,0.21625]
[1766108553751,0.00588,85473.0,85455.0,0.00588]
[1766108553972,0.47069,85469.0,85455.0,0.00588]
[1766108554427,0.30109178,85469.0,85455.0,0.00588]
[1766108554574,0.54788,85468.0,85455.0,0.00588]
[1766108554758,0.01836105,85471.0,85455.0,0.004781]
[1766108554759,0.54788,85466.0,85455.0,0.004781]
[1766108554964,0.54788,85466.0,85447.0,0.0907]
[1766108555171,0.00588,85467.0,85450.0,0.0907]
[1766108555372,0.00588,85467.0,85454.0,0.93745]